bitfinex-derivatives/quotes_BTCF0:USTF0_20250722
["timestamp","ask_amount","ask_price","bid_price","bid_amount"]
[1753142400887,0.4894,117460.0,117450.0,0.08050939]
[1753142401084,0.6094,117460.0,117450.0,0.08050939]
[1753142405885,0.4187974,117460.0,117450.0,0.61152129]
[1753142406092,0.1286,117460.0,117450.0,0.61151306]
[1753142406289,0.1286,117460.0,117450.0,0.5350119]
[1753142406488,0.10368,117460.0,117450.0,0.5350119]
[1753142406690,0.10368,117460.0,117450.0,0.71861883]
[1753142406890,0.10368,117460.0,117450.0,0.70332007]
[1753142407184,0.07968,117460.0,117450.0,0.7052919]
[1753142407390,0.06864,117460.0,117450.0,0.81240504]
[1753142408981,0.06864,117460.0,117450.0,0.7052919]
[1753142409186,0.06864,117460.0,117450.0,1.03166492]
[1753142409386,0.001,117460.0,117450.0,1.03166492]
[1753142409686,0.06586,117460.0,117450.0,1.03166492]
[1753142410790,0.07607,117460.0,117450.0,0.9552919]
[1753142411292,0.07607,117460.0,117450.0,0.78166492]
[1753142412994,0.07607,117460.0,117450.0,0.7052919]
[1753142413588,0.07607,117460.0,117450.0,1.2851719]
[1753142413788,0.09339,117460.0,117450.0,1.34622682]
[1753142413991,0.12388,117460.0,117450.0,0.59606682]
[1753142414191,0.12388,117460.0,117450.0,1.17590682]
[1753142415198,0.12388,117460.0,117450.0,1.17586682]
[1753142416795,0.12388,117460.0,117450.0,0.81506682]
[1753142417000,0.12388,117460.0,117450.0,1.17586682]
[1753142417401,0.12388,117460.0,117450.0,0.59606682]
[1753142417598,0.12388,117460.0,117450.0,1.17586682]
[1753142419501,0.12388,117460.0,117450.0,1.19118492]
[1753142419799,0.12388,117460.0,117450.0,1.26090353]
[1753142422501,0.12388,117460.0,117450.0,1.18453051]
[1753142422705,0.12388,117460.0,117450.0,0.60473051]
[1753142423409,0.12388,117460.0,117450.0,1.26078353]
[1753142424010,0.12388,117460.0,117450.0,1.27999132]
[1753142424711,0.09339,117460.0,117450.0,1.27999132]
[1753142425002,0.07607,117460.0,117450.0,1.27999132]
[1753142426212,0.09453,117460.0,117450.0,1.27999132]
[1753142431518,0.09453,117460.0,117450.0,1.62999132]
[1753142432318,0.09453,117460.0,117450.0,1.6299545]
[1753142433221,0.11912,117460.0,117450.0,1.6299545]
[1753142433518,0.12416,117460.0,117450.0,0.9739383]
[1753142433718,0.12416,117460.0,117450.0,1.5544583]
[1753142434022,0.12416,117460.0,117450.0,1.5543783]
[1753142435114,0.12416,117460.0,117450.0,1.66149144]
[1753142435319,0.0942979,117460.0,117450.0,1.67764144]
[1753142436327,0.4263585,117490.0,117480.0,0.2171785]
[1753142436615,0.57395557,117490.0,117480.0,1.22357213]
[1753142436823,0.57395531,117490.0,117480.0,1.12649619]
[1753142437022,0.5563585,117490.0,117480.0,1.12649619]
[1753142437223,0.5990281,117490.0,117480.0,1.12649619]
[1753142438121,0.5990281,117490.0,117480.0,1.17234581]
[1753142438420,0.6456881,117490.0,117480.0,1.17234581]
[1753142438920,0.6476881,117490.0,117480.0,1.17334581]
[1753142441419,0.6300885,117490.0,117480.0,1.12749619]
[1753142442423,0.6300885,117490.0,117480.0,1.17333287]
[1753142442722,0.6300885,117490.0,117480.0,1.12749619]
[1753142450029,0.6300885,117490.0,117480.0,1.17313141]
[1753142450331,0.64745476,117490.0,117480.0,1.17313141]
[1753142454032,0.6300885,117490.0,117480.0,1.12729619]
[1753142454430,0.8002426,117490.0,117480.0,1.15484619]
[1753142454626,0.8002426,117490.0,117480.0,1.0715685]
[1753142454831,0.9704746,117490.0,117480.0,0.34701516]
[1753142455031,0.98784337,117490.0,117480.0,0.34701516]
[1753142455233,0.98784337,117490.0,117480.0,0.92761516]
[1753142455428,0.98784337,117490.0,117480.0,0.79761516]
[1753142455626,0.98784337,117490.0,117480.0,1.14761516]
[1753142456629,0.81761137,117490.0,117480.0,0.93761516]
[1753142457031,0.81761137,117490.0,117480.0,0.79761516]
[1753142457236,0.81761137,117490.0,117480.0,0.8917685]
[1753142457436,1.23784337,117490.0,117480.0,0.3111686]
[1753142457631,1.23784337,117490.0,117480.0,0.5411686]
[1753142457826,0.64745727,117490.0,117480.0,0.62850526]
[1753142458129,0.64745727,117490.0,117480.0,1.27747526]
[1753142458130,0.2692885,117490.0,117480.0,1.27747526]
[1753142458434,0.2692885,117490.0,117480.0,1.2371786]
[1753142458637,0.28650496,117490.0,117480.0,1.28301323]
[1753142459229,0.2692885,117490.0,117480.0,1.28301323]
[1753142459434,0.2692885,117490.0,117480.0,1.2371786]
[1753142460632,0.4394426,117490.0,117480.0,1.2371786]
[1753142460834,0.6300885,117490.0,117480.0,1.2371786]
[1753142461040,0.64730477,117490.0,117480.0,1.28301824]
[1753142462044,0.81745887,117490.0,117480.0,1.28301824]
[1753142462538,0.81745887,117490.0,117480.0,1.27746824]
[1753142463939,0.64730477,117490.0,117480.0,1.27746824]
[1753142464332,0.81745887,117490.0,117480.0,1.28301824]
[1753142464841,0.8002426,117490.0,117480.0,1.2371786]
[1753142466239,0.8002426,117490.0,117480.0,1.29830345]
[1753142466745,0.6300885,117490.0,117480.0,1.29830345]
[1753142468434,0.6300885,117490.0,117480.0,1.2371786]
[1753142468644,0.2692885,117490.0,117480.0,1.2371786]
[1753142468841,0.2692885,117490.0,117480.0,1.29830345]
[1753142469743,0.2692885,117490.0,117480.0,1.2371786]
[1753142472544,0.6300885,117490.0,117480.0,1.2371786]
[1753142476251,0.6300885,117490.0,117480.0,0.6566186]
[1753142476445,0.8002426,117490.0,117480.0,1.2318286]
[1753142476647,0.6300885,117490.0,117480.0,1.2318286]
[1753142483055,0.8002426,117490.0,117480.0,1.2319486]
[1753142484351,0.81740563,117490.0,117480.0,0.58699847]
[1753142484547,0.81740563,117490.0,117480.0,0.31699847]
[1753142484945,0.81740563,117490.0,117480.0,0.57699847]
[1753142485144,0.81740563,117490.0,117480.0,0.32699847]
[1753142486149,0.8002426,117490.0,117480.0,0.53699847]
[1753142487060,0.8174075,117490.0,117480.0,0.53699847]
[1753142487357,0.8174075,117490.0,117480.0,0.32699847]
[1753142490764,0.6472534,117490.0,117480.0,0.32699847]
[1753142491864,0.64725392,117490.0,117480.0,0.32699847]
[1753142494669,0.64725128,117490.0,117480.0,0.32699847]
[1753142496566,0.64725128,117490.0,117480.0,0.2811686]
[1753142499071,0.64725128,117490.0,117480.0,0.32699847]
[1753142500167,0.64725128,117490.0,117480.0,0.2811686]
[1753142500472,0.81748328,117490.0,117480.0,0.2811686]
[1753142501560,0.98763738,117490.0,117480.0,0.2811686]
[1753142502570,0.81748328,117490.0,117480.0,0.2811686]
[1753142503767,0.82594908,117490.0,117480.0,0.2811686]
[1753142503974,0.99610318,117490.0,117480.0,0.2811686]
[1753142505674,0.82587118,117490.0,117480.0,0.2811686]
[1753142508378,0.65571708,117490.0,117480.0,0.2811686]
[1753142508969,0.99610318,117490.0,117480.0,0.1963386]
[1753142509177,0.99610318,117490.0,117480.0,0.1796186]
[1753142509573,1.49270318,117490.0,117480.0,0.1796186]
[1753142510076,1.49070318,117490.0,117480.0,0.1796186]
[1753142510274,1.49570318,117490.0,117480.0,0.1806186]
[1753142510478,1.49970318,117490.0,117480.0,0.1816186]
[1753142510973,1.49470318,117490.0,117480.0,0.1806186]
[1753142511172,1.49970318,117490.0,117480.0,0.1816186]
[1753142520984,1.49949838,117490.0,117480.0,0.1816186]
[1753142524688,1.32926638,117490.0,117480.0,0.1816186]
[1753142525383,1.32926638,117490.0,117480.0,0.0716186]
[1753142528286,1.49949838,117490.0,117480.0,0.0716186]
[1753142528591,1.49949838,117490.0,117470.0,0.2978165]
[1753142528592,0.2716385,117480.0,117470.0,0.2978165]
[1753142528791,1.43975739,117480.0,117470.0,0.2978165]
[1753142529290,1.43975739,117480.0,117470.0,0.3077065]
[1753142529888,1.44375739,117480.0,117470.0,0.3087065]
[1753142530093,1.44375739,117480.0,117470.0,0.3097065]
[1753142530296,1.44875739,117480.0,117470.0,0.3097065]
[1753142530893,1.27858889,117480.0,117470.0,0.3097065]
[1753142533898,1.27878889,117480.0,117470.0,0.3097065]
[1753142534094,1.44895759,117480.0,117470.0,0.2998165]
[1753142534494,1.27878889,117480.0,117470.0,0.2998165]
[1753142534995,1.27878889,117480.0,117470.0,0.3107065]
[1753142535498,1.44895759,117480.0,117470.0,0.3107065]
[1753142537101,1.44895759,117480.0,117470.0,0.3365165]
[1753142537599,1.27878889,117480.0,117470.0,0.3365165]
[1753142537799,1.27878889,117480.0,117470.0,0.3107065]
[1753142538004,1.44895759,117480.0,117470.0,0.3107065]
[1753142542005,1.44895759,117480.0,117470.0,0.2998165]
[1753142544309,1.44895759,117480.0,117470.0,0.3107065]
[1753142545106,1.46625751,117480.0,117470.0,0.3107065]
[1753142547105,1.82705751,117480.0,117470.0,0.3107065]
[1753142547510,1.65688881,117480.0,117470.0,0.3107065]
[1753142552411,1.05290881,117480.0,117470.0,0.7477865]
[1753142552714,1.55513881,117480.0,117470.0,0.77832749]
[1753142552911,0.97497881,117480.0,117470.0,0.77832749]
[1753142554119,0.8306,117480.0,117470.0,0.77832749]
[1753142556412,0.90948,117480.0,117470.0,0.77832749]
[1753142556818,0.90948,117480.0,117470.0,0.44832749]
[1753142557018,0.93625,117480.0,117470.0,0.75832749]
[1753142558213,0.90948,117480.0,117470.0,0.75832749]
[1753142560309,0.93625,117480.0,117470.0,0.75832749]
[1753142566126,0.93625,117480.0,117470.0,0.7277865]
[1753142569729,0.21465,117480.0,117470.0,0.7277865]
[1753142570026,0.93625,117480.0,117470.0,0.7277865]
[1753142570631,0.93625,117480.0,117470.0,0.75832749]
[1753142574634,0.95324031,117480.0,117470.0,0.7277865]
[1753142576935,0.95324031,117480.0,117470.0,0.4177865]
[1753142578035,0.95324031,117480.0,117470.0,0.7377865]
[1753142580337,0.95324031,117480.0,117470.0,0.4177865]
[1753142580538,0.95324031,117480.0,117470.0,0.3592765]
[1753142580738,1.12340891,117480.0,117470.0,0.2998165]
[1753142581042,1.12340891,117480.0,117470.0,0.2572715]
[1753142588639,0.95324031,117480.0,117470.0,0.3773115]
[1753142588839,1.53472031,117480.0,117470.0,0.3773115]
[1753142589239,0.95324031,117480.0,117470.0,0.7173115]
[1753142589441,1.53480031,117480.0,117470.0,0.3773115]
[1753142589948,1.51781,117480.0,117470.0,0.3773115]
[1753142591646,0.93625,117480.0,117470.0,0.3773115]
[1753142591848,1.51769,117480.0,117470.0,0.3773115]
[1753142595349,1.51769,117480.0,117470.0,0.2994815]
[1753142595546,1.6878577,117480.0,117470.0,0.2572715]
[1753142595746,1.8581057,117480.0,117470.0,0.2572715]
[1753142596050,0.2635121,117470.0,117460.0,0.2552818]
[1753142596242,0.81310212,117470.0,117460.0,0.2552818]
[1753142596545,1.30724082,117470.0,117460.0,0.1701842]
[1753142596747,0.1701967,117460.0,117450.0,0.0851048]
[1753142597044,1.3183802,117460.0,117450.0,0.1701967]
[1753142597242,1.3183802,117460.0,117440.0,0.1582079]
[1753142597243,0.1702112,117450.0,117440.0,0.2553249]
[1753142597549,0.6510112,117450.0,117440.0,0.2553249]
[1753142597740,0.8213072,117450.0,117440.0,0.2553249]
[1753142599045,0.8273072,117450.0,117440.0,0.2563249]
[1753142600047,0.8333072,117450.0,117440.0,0.2563249]
[1753142604556,0.85023349,117450.0,117440.0,0.2563249]
[1753142605453,0.85023349,117450.0,117440.0,0.2906149]
[1753142605655,0.85023349,117450.0,117440.0,0.3166149]
[1753142605856,0.85023349,117450.0,117440.0,0.2740607]
[1753142607257,0.85023349,117450.0,117440.0,0.2137707]
[1753142608160,0.85023349,117450.0,117440.0,0.2740607]
[1753142609855,0.67993749,117450.0,117440.0,0.2740607]
[1753142610056,0.67993749,117450.0,117440.0,0.2315073]
[1753142610756,1.26245749,117450.0,117440.0,0.2315073]
[1753142615560,1.26245749,117450.0,117440.0,0.2419873]
[1753142617361,1.26245749,117450.0,117440.0,0.2315073]
[1753142619760,1.26245749,117450.0,117440.0,0.2419873]
[1753142620869,1.26205729,117450.0,117440.0,0.2873873]
[1753142621156,0.67993729,117450.0,117440.0,0.2873873]
[1753142621353,1.26213729,117450.0,117440.0,0.2873873]
[1753142626268,1.28204729,117450.0,117440.0,0.2873873]
[1753142626467,1.28504729,117450.0,117440.0,0.2873873]
[1753142628766,1.11483629,117450.0,117440.0,0.2873873]
[1753142632874,1.28504719,117450.0,117440.0,0.2873873]
[1753142636875,1.28504719,117450.0,117440.0,0.2315073]
[1753142637071,1.28504719,117450.0,117440.0,0.06129]
[1753142637266,1.28504719,117450.0,117440.0,0.2315154]
[1753142639270,1.28504719,117450.0,117440.0,0.06129]
[1753142639681,1.28504719,117450.0,117440.0,0.001]
[1753142639879,1.28504719,117450.0,117440.0,0.1712254]
[1753142640275,1.28504719,117450.0,117440.0,0.001]
[1753142640776,1.28504719,117450.0,117440.0,0.1712254]
[1753142640973,1.28504719,117450.0,117440.0,0.001]
[1753142643280,1.28504001,117450.0,117440.0,0.001]
[1753142645578,0.2186899,117430.0,117420.0,0.3870827]
[1753142645773,1.66493901,117430.0,117420.0,0.3870827]
[1753142646178,1.49469911,117430.0,117420.0,0.3870827]
[1753142646381,1.66493891,117430.0,117420.0,0.3870827]
[1753142646586,1.66493891,117430.0,117420.0,0.3880827]
[1753142646879,1.66893891,117430.0,117420.0,0.3880827]
[1753142647281,1.67741354,117430.0,117420.0,0.3880827]
[1753142649177,1.68041354,117430.0,117420.0,0.3890827]
[1753142650484,1.68207354,117430.0,117420.0,0.3890827]
[1753142657283,1.68207354,117430.0,117420.0,0.3465191]
[1753142664601,1.66515443,117430.0,117420.0,0.3465191]
[1753142664801,1.66442368,117430.0,117420.0,0.3465191]
[1753142667301,1.66442368,117430.0,117420.0,0.7065191]
[1753142667302,1.48102388,117430.0,117420.0,0.7065191]
[1753142667601,0.8486,117430.0,117420.0,0.7165191]
[1753142667802,1.42956,117430.0,117420.0,0.7165191]
[1753142669205,1.42948,117430.0,117420.0,0.7165191]
[1753142669505,1.42948,117430.0,117420.0,0.3465191]
[1753142670602,1.6164293,117430.0,117420.0,0.3203291]
[1753142670904,1.6180093,117430.0,117420.0,0.3451291]
[1753142678911,1.44777,117430.0,117420.0,0.3451291]
[1753142680216,1.6180093,117430.0,117420.0,0.3451291]
[1753142683017,1.44777,117430.0,117420.0,0.3451291]
[1753142685012,1.44619,117430.0,117420.0,0.3451291]
[1753142685820,1.6175893,117430.0,117420.0,0.3451291]
[1753142686519,1.6175893,117430.0,117420.0,0.2515738]
[1753142686718,1.6175893,117430.0,117420.0,0.2397838]
[1753142687623,1.6175893,117430.0,117420.0,0.2516538]
[1753142691833,1.6175893,117430.0,117420.0,0.002]
[1753142692328,1.61767,117430.0,117410.0,0.2396567]
[1753142692533,0.2073681,117410.0,117400.0,0.3792494]
[1753142692829,1.2489281,117410.0,117400.0,0.3366795]
[1753142693826,1.2489281,117410.0,117400.0,0.3564895]
[1753142694732,1.2509281,117410.0,117400.0,0.3574895]
[1753142695530,1.2529281,117410.0,117400.0,0.3584895]
[1753142695831,1.2529281,117410.0,117400.0,0.3837395]
[1753142696031,1.2529281,117410.0,117400.0,0.3897295]
[1753142696233,1.08266,117410.0,117400.0,0.3897295]
[1753142698834,1.44346,117410.0,117400.0,0.3897295]
[1753142699337,1.613728,117410.0,117400.0,0.3897295]
[1753142700239,0.8627,117410.0,117400.0,0.3897295]
[1753142700441,0.85486,117410.0,117400.0,0.3897295]
[1753142700733,0.8256,117410.0,117400.0,0.9797295]
[1753142700934,0.3608,117420.0,117410.0,0.273218]
[1753142701139,0.4208,117420.0,117410.0,0.682588]
[1753142701340,0.4208,117420.0,117410.0,1.102924]
[1753142702135,0.4208,117420.0,117410.0,1.103924]
[1753142702340,0.4238,117420.0,117410.0,1.103924]
[1753142703130,0.4238,117420.0,117410.0,0.853924]
[1753142703943,0.4268,117420.0,117410.0,0.854924]
[1753142705440,0.4268,117420.0,117410.0,0.88548917]
[1753142710748,0.4268,117420.0,117410.0,0.93131904]
[1753142711151,0.4268,117420.0,117410.0,1.46844917]
[1753142711750,0.4268,117420.0,117410.0,1.51427904]
[1753142712143,0.4268,117420.0,117410.0,1.46844917]
[1753142712343,0.4268,117420.0,117410.0,1.29811317]
[1753142712547,0.4268,117420.0,117410.0,1.46844917]
[1753142712947,0.4268,117420.0,117410.0,0.88548917]
[1753142713255,0.4268,117420.0,117410.0,1.46824917]
[1753142713654,0.4268,117420.0,117410.0,1.29791317]
[1753142713946,0.4268,117420.0,117410.0,1.34374304]
[1753142714253,0.4268,117420.0,117410.0,1.29791317]
[1753142714652,0.4268,117420.0,117410.0,1.30183963]
[1753142715756,0.4268,117420.0,117410.0,0.71907963]
[1753142716148,0.4378,117420.0,117410.0,1.30167963]
[1753142717752,0.46324,117420.0,117410.0,1.30171963]
[1753142718148,0.48823,117420.0,117410.0,1.30171963]
[1753142718754,0.48823,117420.0,117410.0,1.30159963]
[1753142719754,0.48823,117420.0,117410.0,0.71907963]
[1753142719955,0.55613,117420.0,117410.0,0.71907963]
[1753142721866,1.3088634,117420.0,117410.0,0.32720963]
[1753142722062,1.13861,117420.0,117410.0,0.48720963]
[1753142722262,1.3088634,117420.0,117410.0,0.48720963]
[1753142722560,1.13861,117420.0,117410.0,0.45664446]
[1753142723162,1.13861,117420.0,117410.0,0.48720963]
[1753142724062,1.13861,117420.0,117410.0,0.65720963]
[1753142724261,1.13861,117420.0,117410.0,0.66816963]
[1753142726166,1.13861,117420.0,117410.0,0.65720963]
[1753142729766,0.77781,117420.0,117410.0,0.65720963]
[1753142729967,1.49941,117420.0,117410.0,0.65720963]
[1753142731762,1.49941,117420.0,117410.0,0.65722006]
[1753142732268,1.48248,117420.0,117410.0,0.65694006]
[1753142732468,1.49348,117420.0,117410.0,0.65694006]
[1753142733169,0.91693,117420.0,117410.0,0.65694006]
[1753142733368,1.49913,117420.0,117410.0,0.66790006]
[1753142734967,1.49913,117420.0,117410.0,0.71372993]
[1753142735367,1.49913,117420.0,117410.0,0.66790006]
[1753142735567,1.49913,117420.0,117410.0,0.65694006]
[1753142735869,1.4932,117420.0,117410.0,0.65694006]
[1753142738576,1.4932,117420.0,117410.0,0.70276993]
[1753142738875,1.4932,117420.0,117410.0,0.65694006]
[1753142739075,1.4932,117420.0,117410.0,0.70276993]
[1753142739677,1.4932,117420.0,117410.0,0.65694006]
[1753142739876,1.4932,117420.0,117410.0,0.70276993]
[1753142740479,1.4932,117420.0,117410.0,0.65694006]
[1753142740679,1.4932,117420.0,117410.0,0.70276993]
[1753142744791,1.4932,117420.0,117410.0,0.65694006]
[1753142745184,1.4932,117420.0,117410.0,0.70276993]
[1753142748792,1.4932,117420.0,117410.0,0.67219433]
[1753142749388,1.4932,117420.0,117410.0,0.70279172]
[1753142754399,1.4932,117420.0,117410.0,0.67219433]
[1753142754700,1.4932,117420.0,117410.0,0.70279287]
[1753142754895,1.4987,117420.0,117410.0,0.70279287]
[1753142762310,1.4987,117420.0,117410.0,0.67219433]
[1753142762608,1.4987,117420.0,117410.0,0.70279552]
[1753142768210,1.49738,117420.0,117410.0,0.67219433]
[1753142768611,1.49738,117420.0,117410.0,0.70279594]
[1753142768812,1.49738,117420.0,117410.0,0.67219433]
[1753142769412,1.49738,117420.0,117410.0,0.70279611]
[1753142771516,1.49738,117420.0,117410.0,0.67219433]
[1753142772213,1.49738,117420.0,117410.0,0.70279673]
[1753142775212,1.49738,117420.0,117410.0,0.34679686]
[1753142775709,1.49738,117420.0,117410.0,0.20679686]
[1753142780219,1.6676334,117420.0,117410.0,0.20679686]
[1753142781021,1.6676334,117420.0,117410.0,0.17619446]
[1753142782023,1.6676334,117420.0,117410.0,0.20679686]
[1753142782321,1.6676334,117420.0,117410.0,0.17619446]
[1753142784822,1.6676334,117420.0,117410.0,0.19913606]
[1753142787926,1.6676334,117420.0,117410.0,0.26703606]
[1753142788223,0.9165,117420.0,117410.0,0.31134606]
[1753142788421,0.9165,117420.0,117410.0,0.64682606]
[1753142788617,1.49766,117420.0,117410.0,0.31682606]
[1753142788813,0.9165,117420.0,117410.0,0.73860846]
[1753142789018,1.49766,117420.0,117410.0,0.71566686]
[1753142789824,1.49766,117420.0,117410.0,0.27469686]
[1753142790018,1.49766,117420.0,117410.0,0.22973505]
[1753142790326,1.49766,117420.0,117410.0,0.20679686]
[1753142790720,1.49766,117420.0,117410.0,0.27469686]
[1753142791222,1.49766,117420.0,117410.0,0.26310683]
[1753142793428,1.49766,117420.0,117410.0,0.26703329]
[1753142797022,1.49766,117420.0,117410.0,0.28573329]
[1753142797223,1.49766,117420.0,117410.0,0.31134329]
[1753142797528,1.49766,117420.0,117410.0,0.67134329]
[1753142799129,1.49766,117420.0,117410.0,0.31134329]
[1753142799330,1.49766,117420.0,117410.0,0.69134329]
[1753142801524,0.77606,117420.0,117410.0,0.69134329]
[1753142801823,1.49766,117420.0,117410.0,0.69134329]
[1753142802529,0.9165,117420.0,117410.0,0.67682329]
[1753142802728,1.49762,117420.0,117410.0,0.68800329]
[1753142802923,1.42972,117420.0,117410.0,0.68800329]
[1753142803433,1.42972,117420.0,117410.0,0.69566686]
[1753142803632,1.42972,117420.0,117410.0,0.71860319]
[1753142803834,1.42972,117420.0,117410.0,0.69566686]
[1753142804028,1.42972,117420.0,117410.0,0.71860428]
[1753142804227,0.8486,117420.0,117410.0,0.71860428]
[1753142804429,1.42992,117420.0,117410.0,0.71860428]
[1753142806536,1.49561,117420.0,117410.0,0.35860428]
[1753142806733,1.49561,117420.0,117410.0,0.68860428]
[1753142807135,1.49561,117420.0,117410.0,0.35860428]
[1753142807336,1.49561,117420.0,117410.0,0.34742428]
[1753142807739,1.49561,117420.0,117410.0,0.69742428]
[1753142807942,1.49561,117420.0,117410.0,0.65742428]
[1753142808155,1.49561,117420.0,117410.0,0.67742428]
[1753142809049,1.49561,117420.0,117410.0,0.65448686]
[1753142809957,1.49561,117420.0,117410.0,0.32448686]
[1753142810255,1.49561,117420.0,117410.0,0.65448686]
[1753142810452,1.49561,117420.0,117410.0,0.67448686]
[1753142810754,1.49561,117420.0,117410.0,0.32448686]
[1753142811756,1.49561,117420.0,117410.0,0.34742789]
[1753142812464,1.49561,117420.0,117410.0,0.32448686]
[1753142813860,1.49561,117420.0,117410.0,0.66448686]
[1753142815651,1.49561,117420.0,117410.0,0.70448686]
[1753142816860,1.49561,117420.0,117410.0,0.32448686]
[1753142817661,0.77401,117420.0,117410.0,0.65448686]
[1753142817962,1.49561,117420.0,117410.0,0.65448686]
[1753142820548,1.49561,117420.0,117410.0,0.66448686]
[1753142820753,1.49561,117420.0,117410.0,0.29339686]
[1753142820953,1.6658634,117420.0,117410.0,0.24546686]
[1753142821154,1.6658634,117420.0,117410.0,0.20679686]
[1753142821760,1.6658634,117420.0,117410.0,0.22973586]
[1753142822064,1.49561,117420.0,117410.0,0.22973586]
[1753142822653,1.6658635,117420.0,117410.0,0.20679686]
[1753142822851,1.6658635,117420.0,117410.0,0.19913478]
[1753142826865,1.49561,117420.0,117410.0,0.19913478]
[1753142827059,1.49561,117420.0,117410.0,0.22973718]
[1753142827461,1.49561,117420.0,117410.0,0.26445718]
[1753142828169,1.49561,117420.0,117410.0,0.26037478]
[1753142829068,1.6658634,117420.0,117410.0,0.26037478]
[1753142829269,1.49561,117420.0,117410.0,0.26037478]
[1753142829469,1.6658634,117420.0,117410.0,0.26037478]
[1753142831171,1.49561,117420.0,117410.0,0.26037478]
[1753142832662,1.49661,117420.0,117410.0,0.26037478]
[1753142833674,1.6668634,117420.0,117410.0,0.26037478]
[1753142834774,1.49661,117420.0,117410.0,0.26037478]
[1753142835273,1.6668634,117420.0,117410.0,0.26037478]
[1753142837173,1.6668634,117420.0,117410.0,0.19913478]
[1753142843780,1.6668634,117420.0,117410.0,0.02886678]
[1753142843974,1.6668634,117420.0,117410.0,0.00592646]
[1753142844376,1.6668634,117420.0,117410.0,0.17619416]
[1753142845481,1.6668634,117420.0,117410.0,0.00592646]
[1753142845880,1.6668634,117420.0,117410.0,0.17619416]
[1753142850289,1.6668634,117420.0,117410.0,0.00592646]
[1753142851287,1.6668634,117420.0,117410.0,0.17619416]
[1753142851987,1.6668634,117420.0,117410.0,0.00592646]
[1753142852683,1.6668634,117420.0,117410.0,0.17619406]
[1753142854986,1.6668634,117420.0,117410.0,0.00592646]
[1753142856794,1.6668634,117420.0,117410.0,0.17619416]
[1753142859390,1.6668634,117420.0,117410.0,0.00592646]
[1753142860392,1.6668634,117420.0,117410.0,0.17619416]
[1753142862992,1.6668634,117420.0,117410.0,0.00592646]
[1753142870600,1.6668634,117420.0,117410.0,0.002]
[1753142871908,0.04635,117400.0,117390.0,0.2169008]
[1753142872090,1.7026321,117400.0,117390.0,0.4971974]
[1753142872901,1.7026321,117400.0,117390.0,0.50114237]
[1753142873497,1.7046321,117400.0,117390.0,0.50214237]
[1753142874901,1.7086321,117400.0,117390.0,0.50314237]
[1753142875102,1.7086321,117400.0,117390.0,0.47253997]
[1753142875704,1.71703295,117400.0,117390.0,0.47253997]
[1753142878100,1.71703295,117400.0,117390.0,0.38739157]
[1753142878703,1.71703295,117400.0,117390.0,0.10709497]
[1753142878903,1.71703295,117400.0,117390.0,0.00594497]
[1753142879502,1.71703295,117400.0,117390.0,0.17624177]
[1753142881403,0.96571085,117400.0,117390.0,0.23631177]
[1753142881600,0.96571085,117400.0,117390.0,0.27739177]
[1753142882000,1.54679085,117400.0,117390.0,0.27739177]
[1753142882706,1.71707295,117400.0,117390.0,0.27739177]
[1753142902922,1.71707295,117400.0,117390.0,0.23631177]
[1753142904022,1.71707295,117400.0,117390.0,0.00594497]
[1753142905019,1.71707295,117400.0,117380.0,0.06114]
[1753142905020,0.1702967,117390.0,117380.0,0.06114]
[1753142905226,0.2856712,117380.0,117370.0,0.3472193]
[1753142905525,1.3375912,117380.0,117370.0,0.3046386]
[1753142906521,1.3375912,117380.0,117370.0,0.2444986]
[1753142906722,1.3385912,117380.0,117370.0,0.001]
[1753142908220,1.3395912,117380.0,117370.0,0.001]
[1753142908419,1.3395912,117380.0,117360.0,0.3338564]
[1753142908420,0.2157957,117370.0,117360.0,0.3338564]
[1753142908620,0.7564857,117370.0,117360.0,0.6238564]
[1753142908824,0.7564857,117370.0,117360.0,0.6481664]
[1753142909528,0.7564857,117370.0,117360.0,0.6055822]
[1753142909927,0.7564857,117370.0,117360.0,0.4055822]
[1753142910329,0.7564857,117370.0,117360.0,0.3812722]
[1753142910622,0.7584857,117370.0,117360.0,0.3822722]
[1753142911225,0.7584857,117370.0,117360.0,0.3650522]
[1753142912023,0.7584857,117370.0,117360.0,0.3224681]
[1753142913031,0.7584857,117370.0,117360.0,0.3692181]
[1753142913329,1.3396457,117370.0,117360.0,0.3789581]
[1753142914025,1.10963,117370.0,117360.0,0.6089581]
[1753142915031,0.52847,117370.0,117360.0,0.2889581]
[1753142915233,1.06416,117370.0,117360.0,0.6589581]
[1753142915531,1.06416,117370.0,117360.0,0.6289581]
[1753142917532,1.2344856,117370.0,117360.0,0.6289581]
[1753142918630,1.06416,117370.0,117360.0,0.6289581]
[1753142919329,0.483,117370.0,117360.0,0.6289581]
[1753142919535,0.4728,117370.0,117360.0,1.0493661]
[1753142921536,0.4728,117370.0,117360.0,1.0799685]
[1753142922132,0.4728,117370.0,117360.0,0.8299685]
[1753142922828,0.4728,117370.0,117360.0,0.87579837]
[1753142924939,0.4728,117370.0,117360.0,0.8299685]
[1753142925132,0.4728,117370.0,117360.0,0.87579837]
[1753142925740,0.4728,117370.0,117360.0,0.8299685]
[1753142926532,0.4728,117370.0,117360.0,0.87579837]
[1753142928037,0.4728,117370.0,117360.0,1.4111285]
[1753142928236,0.4728,117370.0,117360.0,1.45695837]
[1753142928441,0.48321,117370.0,117360.0,1.45695837]
[1753142933345,0.48321,117370.0,117360.0,1.42635597]
[1753142933543,0.48321,117370.0,117360.0,1.45691408]
[1753142934133,0.4728,117370.0,117360.0,1.45691408]
[1753142934340,0.4728,117370.0,117360.0,1.42635597]
[1753142936444,0.112,117370.0,117360.0,1.42635597]
[1753142936644,0.112,117370.0,117360.0,1.25594797]
[1753142937745,0.4728,117370.0,117360.0,1.25594797]
[1753142940150,0.48321,117370.0,117360.0,1.25594797]
[1753142941146,0.48817,117370.0,117360.0,1.25594797]
[1753142941842,0.5277,117370.0,117360.0,1.28647151]
[1753142942242,0.5277,117370.0,117360.0,1.25590797]
[1753142942445,0.5277,117370.0,117360.0,1.28647761]
[1753142942848,0.58679,117370.0,117360.0,1.27673761]
[1753142943939,0.58679,117370.0,117360.0,1.28624761]
[1753142944444,0.58679,117370.0,117360.0,0.70512761]
[1753142944842,0.58679,117370.0,117360.0,1.28624761]
[1753142945146,0.58679,117370.0,117360.0,1.27673761]
[1753142946142,0.58679,117370.0,117360.0,1.28624761]
[1753142947046,0.58679,117370.0,117360.0,1.25567797]
[1753142947847,0.5277,117370.0,117360.0,1.25567797]
[1753142948941,0.5277,117370.0,117360.0,0.67455797]
[1753142949145,0.5277,117370.0,117360.0,1.25567797]
[1753142950750,0.58679,117370.0,117360.0,1.25567797]
[1753142951245,1.16791,117370.0,117360.0,0.66504797]
[1753142954856,1.16791,117370.0,117360.0,0.47504797]
[1753142955155,1.16791,117370.0,117360.0,0.46504797]